[Event "***Titled Tuesday 3|2 Blitz"]
[Site "Chess.com"]
[Date "2017.02.07"]
[Round "9"]
[White "DryCounty"]
[Black "coalescenet"]
[Result "1-0"]
[WhiteElo "2397"]
[BlackElo "2301"]
[TimeControl "180+2"]
[EndTime "15:16:37 PST"]
[Termination "DryCounty won by resignation"]

1. e4 {[%clk 0:03:02]} 1... c6 {[%clk 0:03:00.6]} 2. d4 {[%clk 0:03:00.5]} 2...
d5 {[%clk 0:03:02.2]} 3. Nc3 {[%clk 0:03:01.4]} 3... dxe4 {[%clk 0:03:02.6]} 4.
Nxe4 {[%clk 0:03:02.3]} 4... Bf5 {[%clk 0:03:03.9]} 5. Nc5 {[%clk 0:03:02.8]}
5... b6 {[%clk 0:03:03]} 6. Nb3 {[%clk 0:03:03.1]} 6... a5 {[%clk 0:03:01.2]} 7.
Nf3 {[%clk 0:03:00.1]} 7... a4 {[%clk 0:02:55.4]} 8. Nbd2 {[%clk 0:03:00.9]}
8... e6 {[%clk 0:02:56]} 9. g3 {[%clk 0:02:57.5]} 9... a3 {[%clk 0:02:56.6]} 10.
b3 {[%clk 0:02:57.8]} 10... Nf6 {[%clk 0:02:56.5]} 11. Bg2 {[%clk 0:02:58.6]}
11... Bb4 {[%clk 0:02:51]} 12. O-O {[%clk 0:02:59.4]} 12... Bc3 {[%clk
0:02:42.1]} 13. Rb1 {[%clk 0:02:59.6]} 13... Bxd4 {[%clk 0:02:43.5]} 14. Nxd4
{[%clk 0:02:53.5]} 14... Qxd4 {[%clk 0:02:42.6]} 15. b4 {[%clk 0:02:17.9]} 15...
O-O {[%clk 0:02:17.8]} 16. Rb3 {[%clk 0:02:17.4]} 16... Rd8 {[%clk 0:01:58.6]}
17. c3 {[%clk 0:02:14.7]} 17... Qd6 {[%clk 0:01:51.4]} 18. Re1 {[%clk
0:02:01.9]} 18... Nbd7 {[%clk 0:01:47.1]} 19. Qe2 {[%clk 0:01:43]} 19... Bc2
{[%clk 0:01:20.7]} 20. Rxa3 {[%clk 0:01:37.1]} 20... Rxa3 {[%clk 0:01:09.9]} 21.
Bxa3 {[%clk 0:01:37.8]} 21... Ra8 {[%clk 0:01:11.5]} 22. Nc4 {[%clk 0:01:35.1]}
22... Qd3 {[%clk 0:01:11.5]} 23. Bxc6 {[%clk 0:01:26.4]} 23... Ra7 {[%clk
0:00:57.3]} 24. Bxd7 {[%clk 0:00:40.8]} 24... Nxd7 {[%clk 0:00:45]} 25. Ne3
{[%clk 0:00:32.6]} 25... Rxa3 {[%clk 0:00:34.8]} 26. Qxc2 {[%clk 0:00:32.1]}
26... Qxc2 {[%clk 0:00:27.5]} 27. Nxc2 {[%clk 0:00:32.6]} 27... Rxa2 {[%clk
0:00:26.5]} 28. Nd4 {[%clk 0:00:32.5]} 28... Kf8 {[%clk 0:00:13.7]} 29. Nb5
{[%clk 0:00:33.1]} 29... Ke7 {[%clk 0:00:13.3]} 30. Rd1 {[%clk 0:00:30.6]} 30...
h5 {[%clk 0:00:12.9]} 31. h4 {[%clk 0:00:30.8]} 31... g6 {[%clk 0:00:12.5]} 32.
Nd6 {[%clk 0:00:31.3]} 32... Rc2 {[%clk 0:00:12.8]} 33. Nxf7 {[%clk 0:00:29.9]}
33... Rxc3 {[%clk 0:00:12.6]} 34. Ng5 {[%clk 0:00:29.8]} 34... Ne5 {[%clk
0:00:13.2]} 35. Kg2 {[%clk 0:00:28.8]} 35... Rb3 {[%clk 0:00:14.1]} 36. Re1
{[%clk 0:00:29.3]} 36... Kd6 {[%clk 0:00:14.1]} 37. Ne4+ {[%clk 0:00:28.2]}
37... Kc7 {[%clk 0:00:14.8]} 38. Ng5 {[%clk 0:00:27.2]} 38... Ng4 {[%clk
0:00:15.9]} 39. Nxe6+ {[%clk 0:00:27.3]} 39... Kd6 {[%clk 0:00:17.4]} 40. Nf4
{[%clk 0:00:28.4]} 40... Rxb4 {[%clk 0:00:15.2]} 41. Re6+ {[%clk 0:00:29.2]}
41... Kd7 {[%clk 0:00:15.7]} 42. Rxg6 {[%clk 0:00:30]} 42... Rb2 {[%clk
0:00:17.2]} 43. Nxh5 {[%clk 0:00:28.6]} 43... Nxf2 {[%clk 0:00:15.2]} 44. Kf3
{[%clk 0:00:29.6]} 44... b5 {[%clk 0:00:16.4]} 45. Nf6+ {[%clk 0:00:29.4]} 45...
Ke6 {[%clk 0:00:17]} 46. Ne4+ {[%clk 0:00:29.1]} 46... Kf7 {[%clk 0:00:15.4]}
47. Rb6 {[%clk 0:00:28.2]} 47... Nxe4 {[%clk 0:00:15.1]} 48. Kxe4 {[%clk
0:00:29.3]} 48... b4 {[%clk 0:00:13.5]} 49. Kf4 {[%clk 0:00:28.8]} 49... b3
{[%clk 0:00:14.6]} 50. Kg5 {[%clk 0:00:29.3]} 50... Rb1 {[%clk 0:00:15.7]} 51.
g4 {[%clk 0:00:30.1]} 51... b2 {[%clk 0:00:17.1]} 52. Rb7+ {[%clk 0:00:31.1]}
52... Ke8 {[%clk 0:00:17.8]} 53. h5 {[%clk 0:00:31.7]} 53... Kd8 {[%clk
0:00:19.1]} 54. Rb4 {[%clk 0:00:31.9]} 54... Ke7 {[%clk 0:00:19]} 55. h6 {[%clk
0:00:32.8]} 55... Ke6 {[%clk 0:00:19.4]} 56. h7 {[%clk 0:00:32.3]} 56... Rh1
{[%clk 0:00:20.2]} 57. Rxb2 {[%clk 0:00:32.6]} 57... Rxh7 {[%clk 0:00:21.7]} 58.
Kg6 {[%clk 0:00:33.6]} 58... Rh1 {[%clk 0:00:22.4]} 59. g5 {[%clk 0:00:34.4]}
59... Ke7 {[%clk 0:00:21.7]} 60. Kg7 {[%clk 0:00:33.6]} 60... Re1 {[%clk
0:00:19.3]} 61. g6 {[%clk 0:00:33.9]} 61... Re3 {[%clk 0:00:20.5]} 62. Rf2
{[%clk 0:00:32.5]} 62... Ke8 {[%clk 0:00:20.7]} 63. Kg8 {[%clk 0:00:32.9]} 63...
Ke7 {[%clk 0:00:21.3]} 64. g7 {[%clk 0:00:33.9]} 64... Ke8 {[%clk 0:00:22.5]}
65. Rg2 {[%clk 0:00:34.4]} 65... Ke7 {[%clk 0:00:23]} 66. Rh2 {[%clk 0:00:31.7]}
66... Rg3 {[%clk 0:00:20.8]} 67. Kh7 {[%clk 0:00:32.4]} 67... Kf7 {[%clk
0:00:20.5]} 68. Rf2+ {[%clk 0:00:33.3]} 68... Ke7 {[%clk 0:00:21.7]} 69. g8=Q
{[%clk 0:00:34.4]} 1-0

[Event "***Titled Tuesday 3|2 Blitz"]
[Site "Chess.com"]
[Date "2017.02.07"]
[Round "9"]
[White "johnathan113"]
[Black "JeremDev"]
[Result "1-0"]
[WhiteElo "2355"]
[BlackElo "2158"]
[TimeControl "180+2"]
[EndTime "15:16:41 PST"]
[Termination "johnathan113 won by resignation"]

1. d4 {[%clk 0:03:02]} 1... Nf6 {[%clk 0:03:00.5]} 2. Nc3 {[%clk 0:03:01.6]}
2... e6 {[%clk 0:02:57]} 3. e4 {[%clk 0:03:02.1]} 3... d5 {[%clk 0:02:58.2]} 4.
Bg5 {[%clk 0:03:00.1]} 4... Be7 {[%clk 0:02:58.5]} 5. e5 {[%clk 0:02:56.9]} 5...
Nfd7 {[%clk 0:02:59.3]} 6. Bxe7 {[%clk 0:02:56.7]} 6... Qxe7 {[%clk 0:03:01.2]}
7. f4 {[%clk 0:02:58.6]} 7... g6 {[%clk 0:02:51.5]} 8. Nf3 {[%clk 0:02:57.5]}
8... b6 {[%clk 0:02:51.7]} 9. h4 {[%clk 0:02:57.3]} 9... h5 {[%clk 0:02:50.2]}
10. Ng5 {[%clk 0:02:45.7]} 10... Ba6 {[%clk 0:02:48.6]} 11. Bxa6 {[%clk
0:02:46.4]} 11... Nxa6 {[%clk 0:02:49.6]} 12. Qd3 {[%clk 0:02:46.7]} 12... Nb4
{[%clk 0:02:48.7]} 13. Qd2 {[%clk 0:02:47.8]} 13... a6 {[%clk 0:02:24.3]} 14. a3
{[%clk 0:02:48.4]} 14... Nc6 {[%clk 0:02:24.9]} 15. O-O-O {[%clk 0:02:49.8]}
15... Na5 {[%clk 0:02:23.5]} 16. Qe2 {[%clk 0:02:48.2]} 16... Nc4 {[%clk
0:02:21.6]} 17. Rh3 {[%clk 0:02:45.3]} 17... b5 {[%clk 0:02:20.1]} 18. Nb1
{[%clk 0:02:42.8]} 18... Ndb6 {[%clk 0:02:18.7]} 19. g4 {[%clk 0:02:37.3]} 19...
hxg4 {[%clk 0:02:18.6]} 20. Qxg4 {[%clk 0:02:39.2]} 20... O-O-O {[%clk 0:02:18]}
21. Rdh1 {[%clk 0:02:37.7]} 21... Rh5 {[%clk 0:02:16.8]} 22. Qg3 {[%clk
0:02:24.7]} 22... Kb7 {[%clk 0:02:14.1]} 23. Qb3 {[%clk 0:02:20.3]} 23... Rc8
{[%clk 0:02:08]} 24. Nc3 {[%clk 0:02:13.1]} 24... c5 {[%clk 0:02:00.1]} 25. dxc5
{[%clk 0:02:11.4]} 25... Rxc5 {[%clk 0:02:02]} 26. a4 {[%clk 0:01:59.6]} 26...
bxa4 {[%clk 0:01:57.7]} 27. Qb4 {[%clk 0:01:57.1]} 27... Qc7 {[%clk 0:01:52.9]}
28. Nxf7 {[%clk 0:01:51.4]} 28... Qxf7 {[%clk 0:01:39.1]} 29. Qxc5 {[%clk
0:01:51]} 29... Qxf4+ {[%clk 0:01:40.7]} 30. Kb1 {[%clk 0:01:49.5]} 30... Rh7
{[%clk 0:01:28]} 31. Ka1 {[%clk 0:01:24]} 31... Rc7 {[%clk 0:01:27.2]} 32. Qb4
{[%clk 0:01:22]} 32... a3 {[%clk 0:01:21.8]} 33. bxa3 {[%clk 0:01:18.3]} 33...
Qxe5 {[%clk 0:01:20.5]} 34. Rb1 {[%clk 0:01:16.3]} 34... Ka7 {[%clk 0:01:18.6]}
35. Ka2 {[%clk 0:01:14.9]} 35... Qf5 {[%clk 0:01:06.4]} 36. Rd3 {[%clk
0:01:13.8]} 36... Qf2 {[%clk 0:01:02.7]} 37. Qb3 {[%clk 0:01:01.3]} 37... Na5
{[%clk 0:00:59.8]} 38. Qb2 {[%clk 0:00:59.3]} 38... Nac4 {[%clk 0:00:57.5]} 39.
Qb3 {[%clk 0:00:49.5]} 39... Na5 {[%clk 0:00:54.8]} 40. Qb4 {[%clk 0:00:43]}
40... Nac4 {[%clk 0:00:39.1]} 41. Ka1 {[%clk 0:00:27.6]} 41... Qxc2 {[%clk
0:00:37.4]} 42. Rf3 {[%clk 0:00:26.8]} 42... d4 {[%clk 0:00:27.4]} 43. Na2
{[%clk 0:00:19.5]} 43... d3 {[%clk 0:00:19.5]} 44. Rf4 {[%clk 0:00:17.6]} 44...
Rb7 {[%clk 0:00:08.7]} 45. Nc3 {[%clk 0:00:11.2]} 45... d2 {[%clk 0:00:08.3]}
46. Nd1 {[%clk 0:00:12.4]} 46... Qd3 {[%clk 0:00:07.4]} 47. a4 {[%clk
0:00:08.9]} 47... Qa3+ {[%clk 0:00:07.9]} 48. Qxa3 {[%clk 0:00:10]} 48... Nxa3
{[%clk 0:00:09.8]} 49. Rb3 {[%clk 0:00:09.8]} 49... Nac4 {[%clk 0:00:08.1]} 50.
Rd3 {[%clk 0:00:05]} 50... e5 {[%clk 0:00:08.3]} 51. Rf6 {[%clk 0:00:05.8]}
51... Rh7 {[%clk 0:00:08.2]} 52. Rxg6 {[%clk 0:00:06.5]} 52... Rxh4 {[%clk
0:00:08.8]} 53. Rg7+ {[%clk 0:00:08.1]} 53... Kb8 {[%clk 0:00:09.5]} 54. Rd8+
{[%clk 0:00:09.2]} 54... Nc8 {[%clk 0:00:10.6]} 55. Rgg8 {[%clk 0:00:10.8]}
55... Nd6 {[%clk 0:00:11.2]} 56. Rxd6 {[%clk 0:00:11.1]} 56... Rxa4+ {[%clk
0:00:12]} 57. Kb2 {[%clk 0:00:11.9]} 57... Kc7 {[%clk 0:00:10.9]} 58. Rxd2
{[%clk 0:00:11.7]} 58... Rb4+ {[%clk 0:00:10.4]} 59. Kc3 {[%clk 0:00:12.1]}
59... Rb5 {[%clk 0:00:10.7]} 60. Ne3 {[%clk 0:00:13]} 60... Nd6 {[%clk
0:00:09.8]} 61. Rg7+ {[%clk 0:00:12.3]} 61... Kc6 {[%clk 0:00:10.5]} 62. Rg6
{[%clk 0:00:13.3]} 62... Rc5+ {[%clk 0:00:11.8]} 63. Kb2 {[%clk 0:00:14.2]}
63... Rb5+ {[%clk 0:00:12.3]} 64. Kc1 {[%clk 0:00:15.5]} 64... Rc5+ {[%clk
0:00:08.3]} 65. Kd1 {[%clk 0:00:16.9]} 1-0

[Event "***Titled Tuesday 3|2 Blitz"]
[Site "Chess.com"]
[Date "2017.02.07"]
[Round "9"]
[White "MateusViageiro"]
[Black "Divertissement"]
[Result "0-1"]
[WhiteElo "2404"]
[BlackElo "2434"]
[TimeControl "180+2"]
[EndTime "15:16:45 PST"]
[Termination "Divertissement won by resignation"]

1. e4 {[%clk 0:03:01.9]} 1... e5 {[%clk 0:02:56.9]} 2. Nf3 {[%clk 0:03:01.8]}
2... Nc6 {[%clk 0:02:56.4]} 3. Bb5 {[%clk 0:03:03.2]} 3... a6 {[%clk 0:02:55.4]}
4. Ba4 {[%clk 0:03:04.2]} 4... Nf6 {[%clk 0:02:55.5]} 5. Bxc6 {[%clk 0:03:02.8]}
5... dxc6 {[%clk 0:02:54.8]} 6. d3 {[%clk 0:03:04.3]} 6... Bd6 {[%clk
0:02:54.6]} 7. Nbd2 {[%clk 0:03:05]} 7... Qe7 {[%clk 0:02:54]} 8. Nc4 {[%clk
0:03:04.6]} 8... Nd7 {[%clk 0:02:53.9]} 9. Bd2 {[%clk 0:03:04.7]} 9... O-O
{[%clk 0:02:52.1]} 10. Qe2 {[%clk 0:03:04.9]} 10... f6 {[%clk 0:02:49.2]} 11.
Ne3 {[%clk 0:03:04.4]} 11... Nc5 {[%clk 0:02:42.4]} 12. Nf5 {[%clk 0:02:59.9]}
12... Bxf5 {[%clk 0:02:41.3]} 13. exf5 {[%clk 0:03:00.8]} 13... e4 {[%clk
0:02:31.9]} 14. dxe4 {[%clk 0:03:01.1]} 14... Qxe4 {[%clk 0:02:29.8]} 15. Qxe4
{[%clk 0:02:55.7]} 15... Nxe4 {[%clk 0:02:30.4]} 16. Be3 {[%clk 0:02:56.5]}
16... a5 {[%clk 0:02:06]} 17. O-O-O {[%clk 0:02:55.8]} 17... a4 {[%clk
0:02:05.3]} 18. a3 {[%clk 0:02:46.1]} 18... Ra5 {[%clk 0:02:03.1]} 19. g4 {[%clk
0:02:41.5]} 19... Re8 {[%clk 0:01:54.9]} 20. Nd4 {[%clk 0:02:41]} 20... Kf7
{[%clk 0:01:45.1]} 21. c3 {[%clk 0:02:36]} 21... Rd5 {[%clk 0:01:32.9]} 22. Kc2
{[%clk 0:02:34.9]} 22... Nc5 {[%clk 0:01:26.1]} 23. h3 {[%clk 0:02:27.4]} 23...
Rde5 {[%clk 0:01:04.4]} 24. Nf3 {[%clk 0:02:17.6]} 24... R5e7 {[%clk 0:00:58.4]}
25. Nd4 {[%clk 0:02:18.4]} 25... Re4 {[%clk 0:00:37.3]} 26. Rhe1 {[%clk
0:02:10.2]} 26... Rh8 {[%clk 0:00:32.1]} 27. f3 {[%clk 0:01:56.5]} 27... Ree8
{[%clk 0:00:24.1]} 28. Bf2 {[%clk 0:01:46.5]} 28... h5 {[%clk 0:00:19.3]} 29.
Rxe8 {[%clk 0:01:46]} 29... Rxe8 {[%clk 0:00:17.5]} 30. Re1 {[%clk 0:01:40]}
30... Rh8 {[%clk 0:00:15.8]} 31. Ne2 {[%clk 0:01:19.7]} 31... hxg4 {[%clk
0:00:15.5]} 32. Bxc5 {[%clk 0:01:11.2]} 32... Bxc5 {[%clk 0:00:15.9]} 33. hxg4
{[%clk 0:01:07.6]} 33... Rh3 {[%clk 0:00:14.9]} 34. Rf1 {[%clk 0:00:59.6]} 34...
b5 {[%clk 0:00:12.9]} 35. Kd3 {[%clk 0:00:57.4]} 35... Rh2 {[%clk 0:00:13.1]}
36. Kd2 {[%clk 0:00:37.7]} 36... Bb6 {[%clk 0:00:12.3]} 37. Kd3 {[%clk
0:00:38.6]} 37... c5 {[%clk 0:00:12.4]} 38. Kd2 {[%clk 0:00:15.4]} 38... c4
{[%clk 0:00:11.9]} 39. Ke1 {[%clk 0:00:16.3]} 39... Be3 {[%clk 0:00:11.7]} 40.
Kd1 {[%clk 0:00:17.1]} 40... c5 {[%clk 0:00:12.1]} 41. Ke1 {[%clk 0:00:17.7]}
41... b4 {[%clk 0:00:12.7]} 42. axb4 {[%clk 0:00:18.1]} 42... cxb4 {[%clk
0:00:13.7]} 43. cxb4 {[%clk 0:00:19.4]} 43... c3 {[%clk 0:00:14.6]} 44. Nxc3
{[%clk 0:00:18.2]} 44... a3 {[%clk 0:00:11.7]} 45. bxa3 {[%clk 0:00:15.4]} 45...
Bd2+ {[%clk 0:00:12.8]} 46. Kd1 {[%clk 0:00:16.4]} 46... Bxc3 {[%clk 0:00:13.9]}
47. f4 {[%clk 0:00:14.5]} 47... Ra2 {[%clk 0:00:13.9]} 48. g5 {[%clk 0:00:15.7]}
48... Ra1+ {[%clk 0:00:13.7]} 49. Ke2 {[%clk 0:00:16.4]} 49... Rxa3 {[%clk
0:00:14.8]} 50. Rf3 {[%clk 0:00:16.2]} 50... Bxb4 {[%clk 0:00:15.1]} 51. gxf6
{[%clk 0:00:15.4]} 51... Kxf6 {[%clk 0:00:15.6]} 52. Rf1 {[%clk 0:00:15.1]}
52... Kxf5 {[%clk 0:00:15]} 53. Rg1 {[%clk 0:00:16.1]} 53... Bc3 {[%clk
0:00:12.7]} 54. Rg3 {[%clk 0:00:16.2]} 54... Kxf4 {[%clk 0:00:12.5]} 55. Rf3+
{[%clk 0:00:16.3]} 55... Kg4 {[%clk 0:00:13.2]} 56. Rd3 {[%clk 0:00:16.9]} 56...
g5 {[%clk 0:00:14]} 57. Rd8 {[%clk 0:00:16.2]} 57... Be5 {[%clk 0:00:13.4]} 58.
Re8 {[%clk 0:00:16.7]} 58... Bf4 {[%clk 0:00:14]} 59. Rc8 {[%clk 0:00:16.3]}
59... Ra2+ {[%clk 0:00:14.4]} 60. Kf1 {[%clk 0:00:17.1]} 60... Kf3 {[%clk
0:00:14.1]} 61. Rc3+ {[%clk 0:00:14.6]} 61... Be3 {[%clk 0:00:14.6]} 0-1

[Event "***Titled Tuesday 3|2 Blitz"]
[Site "Chess.com"]
[Date "2017.02.07"]
[Round "9"]
[White "maciek_92"]
[Black "tigra"]
[Result "0-1"]
[WhiteElo "2577"]
[BlackElo "2609"]
[TimeControl "180+2"]
[EndTime "15:16:55 PST"]
[Termination "tigra won by resignation"]

1. c4 {[%clk 0:03:02]} 1... e5 {[%clk 0:03:00.4]} 2. Nc3 {[%clk 0:03:02.3]} 2...
g6 {[%clk 0:03:00.2]} 3. g3 {[%clk 0:03:02]} 3... Bg7 {[%clk 0:03:00.9]} 4. Bg2
{[%clk 0:03:03.6]} 4... Ne7 {[%clk 0:03:00.8]} 5. e4 {[%clk 0:02:59.9]} 5... c5
{[%clk 0:03:00.8]} 6. Nge2 {[%clk 0:03:01.5]} 6... Nbc6 {[%clk 0:03:01.4]} 7.
O-O {[%clk 0:03:02.6]} 7... d6 {[%clk 0:03:02.1]} 8. d3 {[%clk 0:02:56.7]} 8...
a6 {[%clk 0:03:00.2]} 9. a3 {[%clk 0:02:56.1]} 9... b6 {[%clk 0:02:59.5]} 10.
Rb1 {[%clk 0:02:57.2]} 10... Nd4 {[%clk 0:02:53.6]} 11. b4 {[%clk 0:02:55.3]}
11... h5 {[%clk 0:02:50.2]} 12. h3 {[%clk 0:02:50.8]} 12... Nec6 {[%clk
0:02:37.7]} 13. f4 {[%clk 0:02:42.5]} 13... exf4 {[%clk 0:02:32.6]} 14. Nxf4
{[%clk 0:02:33.7]} 14... h4 {[%clk 0:02:30.9]} 15. g4 {[%clk 0:02:32]} 15... Ne5
{[%clk 0:02:14.4]} 16. Ncd5 {[%clk 0:02:21.1]} 16... g5 {[%clk 0:02:05.2]} 17.
Nh5 {[%clk 0:02:16]} 17... Kf8 {[%clk 0:01:51.6]} 18. bxc5 {[%clk 0:02:16.4]}
18... bxc5 {[%clk 0:01:52.2]} 19. Nxg7 {[%clk 0:02:06.2]} 19... Kxg7 {[%clk
0:01:52.7]} 20. Rf6 {[%clk 0:02:04.7]} 20... Ne6 {[%clk 0:01:22.7]} 21. Be3
{[%clk 0:02:05]} 21... Bd7 {[%clk 0:00:48.3]} 22. Qd2 {[%clk 0:02:01.4]} 22...
Qxf6 {[%clk 0:00:18.1]} 23. Nxf6 {[%clk 0:02:01.8]} 23... Kxf6 {[%clk 0:00:20]}
24. Rb6 {[%clk 0:01:54.3]} 24... Bc6 {[%clk 0:00:20.7]} 25. d4 {[%clk
0:01:38.7]} 25... cxd4 {[%clk 0:00:21.1]} 26. Bxd4 {[%clk 0:01:40.6]} 26... Rhc8
{[%clk 0:00:20.3]} 27. Bc3 {[%clk 0:01:10.7]} 27... Ke7 {[%clk 0:00:20.8]} 28.
c5 {[%clk 0:01:00.2]} 28... Nc4 {[%clk 0:00:21.1]} 29. Qd3 {[%clk 0:00:57.9]}
29... Nxb6 {[%clk 0:00:17.2]} 30. Qxd6+ {[%clk 0:00:59]} 30... Ke8 {[%clk
0:00:18.6]} 31. cxb6 {[%clk 0:00:50.8]} 31... Rab8 {[%clk 0:00:19.5]} 32. Bf6
{[%clk 0:00:47.5]} 32... Rb7 {[%clk 0:00:20.6]} 33. Qb4 {[%clk 0:00:30]} 33...
Rcb8 {[%clk 0:00:20.4]} 34. Bf1 {[%clk 0:00:27.2]} 34... a5 {[%clk 0:00:20.3]}
35. Qd6 {[%clk 0:00:27.2]} 35... Ba4 {[%clk 0:00:19.8]} 36. Ba6 {[%clk
0:00:27.2]} 36... Nf4 {[%clk 0:00:09.7]} 37. Bxb7 {[%clk 0:00:21.5]} 37... Rxb7
{[%clk 0:00:11.6]} 38. Bxg5 {[%clk 0:00:17.2]} 38... Nxh3+ {[%clk 0:00:12.3]}
39. Kg2 {[%clk 0:00:18.7]} 39... Nxg5 {[%clk 0:00:14.2]} 40. Qd5 {[%clk
0:00:19.3]} 40... h3+ {[%clk 0:00:11.2]} 41. Kg3 {[%clk 0:00:18.4]} 41... Rxb6
{[%clk 0:00:08.7]} 42. Qxg5 {[%clk 0:00:16.6]} 42... Rb3+ {[%clk 0:00:09.7]} 43.
Kf4 {[%clk 0:00:17.4]} 43... Bd7 {[%clk 0:00:07.4]} 44. Qh6 {[%clk 0:00:16.4]}
44... Be6 {[%clk 0:00:07.8]} 45. Ke5 {[%clk 0:00:16.3]} 45... Kd7 {[%clk
0:00:08.4]} 46. a4 {[%clk 0:00:16.7]} 46... Rg3 {[%clk 0:00:08]} 47. g5 {[%clk
0:00:17.5]} 47... Rg2 {[%clk 0:00:08.2]} 48. Qh4 {[%clk 0:00:15.6]} 48... h2
{[%clk 0:00:09.3]} 49. Kf6 {[%clk 0:00:14.6]} 49... Kd6 {[%clk 0:00:09.4]} 50.
Qf4+ {[%clk 0:00:14]} 50... Kc6 {[%clk 0:00:08.9]} 51. Qh4 {[%clk 0:00:14.5]}
51... Kc5 {[%clk 0:00:07.5]} 52. Ke5 {[%clk 0:00:13.1]} 52... Rxg5+ {[%clk
0:00:07.1]} 53. Kf6 {[%clk 0:00:12.2]} 53... Rg2 {[%clk 0:00:04.5]} 54. Ke7
{[%clk 0:00:13.5]} 54... Kd4 {[%clk 0:00:04.9]} 55. Kd6 {[%clk 0:00:13.6]} 55...
Rc2 {[%clk 0:00:04.5]} 56. Qf6+ {[%clk 0:00:11.7]} 56... Kxe4 {[%clk 0:00:04.5]}
57. Qe5+ {[%clk 0:00:12]} 57... Kf3 {[%clk 0:00:04.9]} 58. Qh5+ {[%clk
0:00:13.2]} 58... Kg3 {[%clk 0:00:03.2]} 59. Qg5+ {[%clk 0:00:11.2]} 59... Bg4
{[%clk 0:00:03.2]} 60. Qe5+ {[%clk 0:00:11.5]} 60... Kh3 {[%clk 0:00:03.9]} 61.
Qh8+ {[%clk 0:00:12.4]} 61... Kg2 {[%clk 0:00:04.8]} 62. Qa8+ {[%clk 0:00:11.6]}
62... Bf3 {[%clk 0:00:03.7]} 63. Qg8+ {[%clk 0:00:12.1]} 63... Kf1 {[%clk
0:00:04.9]} 64. Qh7 {[%clk 0:00:11.1]} 64... Rd2+ {[%clk 0:00:06.8]} 65. Ke5
{[%clk 0:00:11]} 65... h1=Q {[%clk 0:00:08.7]} 0-1